[Event "Titled Tuesday Blitz May 4 2021"]
[White "Trost, Edvin"]
[Black "Shyaamnikhil P"]
[WhiteFideId "1729519"]
[BlackFideId "5024218"]
[WhiteElo "2028"]
[BlackElo "2300"]
[Result "0-1"]
[Round "05"]
[TimeControl "180+1"]
[Date "2021.05.04"]
[WhiteClock "0:00:01"]
[BlackClock "0:00:15"]

1. d4 {[%clk 0:03:00]}  d5 {[%clk 0:02:58]} 2. Nf3 {[%clk 0:02:57]}  Nf6 {[%clk 0:02:57]} 3. c4 {[%clk 0:02:55]}  dxc4 {[%clk 0:02:56]} 4. e3 {[%clk 0:02:50]}  a6 {[%clk 0:02:50]} 5. Bxc4 {[%clk 0:02:48]}  b5 {[%clk 0:02:49]} 6. Bb3 {[%clk 0:02:49]}  e6 {[%clk 0:02:48]} 7. O-O {[%clk 0:02:48]}  Bb7 {[%clk 0:02:45]} 8. Qe2 {[%clk 0:02:39]}  c5 {[%clk 0:02:37]} 9. dxc5 {[%clk 0:02:35]}  Bxc5 {[%clk 0:02:36]} 10. Nc3 {[%clk 0:02:32]}  Qc7 {[%clk 0:02:30]} 11. e4 {[%clk 0:02:28]}  Nc6 {[%clk 0:02:28]} 12. e5 {[%clk 0:02:26]}  Ng4 {[%clk 0:02:24]} 13. Bf4 {[%clk 0:02:26]}  h5 {[%clk 0:02:17]} 14. Ne4 {[%clk 0:02:24]}  Be7 {[%clk 0:02:13]} 15. Rac1 {[%clk 0:02:17]}  O-O {[%clk 0:02:10]} 16. h3 {[%clk 0:02:14]}  Nh6 {[%clk 0:02:05]} 17. Nd6 {[%clk 0:01:51]}  Bxd6 {[%clk 0:01:59]} 18. exd6 {[%clk 0:01:52]}  Qd7 {[%clk 0:01:53]} 19. Bxh6 {[%clk 0:01:38]}  gxh6 {[%clk 0:01:54]} 20. Rfd1 {[%clk 0:01:38]}  Rae8 {[%clk 0:01:51]} 21. Qe3 {[%clk 0:01:34]}  Kh7 {[%clk 0:01:49]} 22. Ne5 {[%clk 0:01:14]}  Nxe5 {[%clk 0:01:49]} 23. Rc7 {[%clk 0:01:14]}  Qd8 {[%clk 0:01:48]} 24. Qxe5 {[%clk 0:01:14]}  Ba8 {[%clk 0:01:44]} 25. Qxh5 {[%clk 0:01:12]}  Qf6 {[%clk 0:01:40]} 26. Bc2+ {[%clk 0:01:09]}  Kh8 {[%clk 0:01:39]} 27. d7 {[%clk 0:00:57]}  Rd8 {[%clk 0:01:38]} 28. Kh1 {[%clk 0:00:36]}  Rg8 {[%clk 0:01:37]} 29. f3 {[%clk 0:00:36]}  Rg5 {[%clk 0:01:35]} 30. Qh4 {[%clk 0:00:37]}  Bxf3 {[%clk 0:01:27]} 31. Qd4 {[%clk 0:00:37]}  Bxg2+ {[%clk 0:01:21]} 32. Kh2 {[%clk 0:00:35]}  Qxd4 {[%clk 0:01:20]} 33. Rxd4 {[%clk 0:00:36]}  Bd5 {[%clk 0:01:20]} 34. Rd2 {[%clk 0:00:35]}  Kg7 {[%clk 0:01:17]} 35. Bb3 {[%clk 0:00:34]}  Kf6 {[%clk 0:01:12]} 36. Ra7 {[%clk 0:00:33]}  Bxb3 {[%clk 0:01:08]} 37. axb3 {[%clk 0:00:33]}  Ke7 {[%clk 0:01:08]} 38. h4 {[%clk 0:00:07]}  Re5 {[%clk 0:01:05]} 39. Kh3 {[%clk 0:00:03]}  Re3+ {[%clk 0:01:04]} 40. Kg4 {[%clk 0:00:03]}  Rxb3 {[%clk 0:01:04]} 41. Kh5 {[%clk 0:00:04]}  Rb4 {[%clk 0:01:04]} 42. Rxa6 {[%clk 0:00:03]}  Rxd7 {[%clk 0:01:03]} 43. Rxd7+ {[%clk 0:00:04]}  Kxd7 {[%clk 0:01:03]} 44. Ra7+ {[%clk 0:00:05]}  Ke8 {[%clk 0:01:02]} 45. Ra8+ {[%clk 0:00:05]}  Ke7 {[%clk 0:01:02]} 46. Ra7+ {[%clk 0:00:06]}  Kf6 {[%clk 0:01:01]} 47. Rd7 {[%clk 0:00:01]}  Rxb2 {[%clk 0:00:59]} 48. Kxh6 {[%clk 0:00:02]}  b4 {[%clk 0:00:59]} 49. h5 {[%clk 0:00:02]}  b3 {[%clk 0:00:57]} 50. Rd3 {[%clk 0:00:03]}  e5 {[%clk 0:00:52]} 51. Rf3+ {[%clk 0:00:03]}  Ke6 {[%clk 0:00:52]} 52. Kg7 {[%clk 0:00:04]}  e4 {[%clk 0:00:51]} 53. Rf6+ {[%clk 0:00:03]}  Ke5 {[%clk 0:00:50]} 54. Rxf7 {[%clk 0:00:03]}  Rg2+ {[%clk 0:00:49]} 55. Kh7 {[%clk 0:00:03]}  b2 {[%clk 0:00:49]} 56. Rb7 {[%clk 0:00:04]}  e3 {[%clk 0:00:49]} 57. h6 {[%clk 0:00:04]}  Kf4 {[%clk 0:00:44]} 58. Kh8 {[%clk 0:00:04]}  Rh2 {[%clk 0:00:36]} 59. h7 {[%clk 0:00:04]}  e2 {[%clk 0:00:35]} 60. Rxb2 {[%clk 0:00:04]}  Rxh7+ {[%clk 0:00:35]} 61. Kxh7 {[%clk 0:00:03]}  e1=Q {[%clk 0:00:35]} 62. Rb8 {[%clk 0:00:01]}  Qe7+ {[%clk 0:00:33]} 63. Kg8 {[%clk 0:00:01]}  Qe6+ {[%clk 0:00:33]} 64. Kh7 {[%clk 0:00:01]}  Qd7+ {[%clk 0:00:29]} 65. Kh8 {[%clk 0:00:02]}  Qd4+ {[%clk 0:00:28]} 66. Kh7 {[%clk 0:00:02]}  Qe4+ {[%clk 0:00:26]} 67. Kh6 {[%clk 0:00:01]}  Qe6+ {[%clk 0:00:18]} 68. Kh7 {[%clk 0:00:02]}  Qe7+ {[%clk 0:00:17]} 69. Kg8 {[%clk 0:00:01]}  Qg5+ {[%clk 0:00:15]} 0-1


[Site "https://www.chess.com"]

[Event "Titled Tuesday Blitz May 4 2021"]
[White "Unneland, Mathias"]
[Black "Nitin, S."]
[WhiteFideId "1525581"]
[BlackFideId "5018277"]
[WhiteElo "1975"]
[BlackElo "2431"]
[Result "0-1"]
[Round "05"]
[TimeControl "180+1"]
[Date "2021.05.04"]
[WhiteClock "0:00:03"]
[BlackClock "0:00:07"]

1. d4 {[%clk 0:03:00]}  c5 {[%clk 0:02:59]} 2. d5 {[%clk 0:03:01]}  d6 {[%clk 0:02:57]} 3. c4 {[%clk 0:03:01]}  e5 {[%clk 0:02:56]} 4. Nc3 {[%clk 0:03:01]}  g6 {[%clk 0:02:57]} 5. e4 {[%clk 0:03:01]}  Bg7 {[%clk 0:02:57]} 6. h4 {[%clk 0:02:50]}  Nf6 {[%clk 0:02:55]} 7. Be2 {[%clk 0:02:46]}  h5 {[%clk 0:02:53]} 8. Bg5 {[%clk 0:02:38]}  a6 {[%clk 0:02:52]} 9. Nf3 {[%clk 0:02:29]}  Qc7 {[%clk 0:02:48]} 10. Nd2 {[%clk 0:02:23]}  Nh7 {[%clk 0:02:45]} 11. Be3 {[%clk 0:02:21]}  Nd7 {[%clk 0:02:46]} 12. O-O {[%clk 0:02:13]}  Ndf6 {[%clk 0:02:45]} 13. f3 {[%clk 0:02:06]}  Ng8 {[%clk 0:02:45]} 14. a3 {[%clk 0:02:04]}  Bh6 {[%clk 0:02:45]} 15. Bxh6 {[%clk 0:02:03]}  Nxh6 {[%clk 0:02:46]} 16. Rb1 {[%clk 0:01:43]}  Qe7 {[%clk 0:02:44]} 17. Qe1 {[%clk 0:01:41]}  g5 {[%clk 0:02:44]} 18. hxg5 {[%clk 0:01:36]}  Qxg5 {[%clk 0:02:43]} 19. Rd1 {[%clk 0:01:27]}  Rg8 {[%clk 0:02:41]} 20. Rf2 {[%clk 0:01:02]}  Qh4 {[%clk 0:02:35]} 21. Nf1 {[%clk 0:01:00]}  Ng5 {[%clk 0:02:33]} 22. g3 {[%clk 0:00:51]}  Nh3+ {[%clk 0:02:27]} 23. Kh2 {[%clk 0:00:51]}  Qf6 {[%clk 0:02:21]} 24. Rg2 {[%clk 0:00:39]}  Bd7 {[%clk 0:02:11]} 25. b4 {[%clk 0:00:37]}  O-O-O {[%clk 0:02:05]} 26. bxc5 {[%clk 0:00:36]}  dxc5 {[%clk 0:02:05]} 27. Ne3 {[%clk 0:00:36]}  Ng4+ {[%clk 0:01:55]} 28. fxg4 {[%clk 0:00:34]}  hxg4 {[%clk 0:01:55]} 29. Kh1 {[%clk 0:00:23]}  Qh6 {[%clk 0:01:53]} 30. Bf1 {[%clk 0:00:18]}  Ng5+ {[%clk 0:01:02]} 31. Rh2 {[%clk 0:00:18]}  Qg6 {[%clk 0:01:01]} 32. Bg2 {[%clk 0:00:17]}  Rh8 {[%clk 0:00:57]} 33. Qf2 {[%clk 0:00:17]}  Kb8 {[%clk 0:00:51]} 34. Rf1 {[%clk 0:00:16]}  Rxh2+ {[%clk 0:00:47]} 35. Kxh2 {[%clk 0:00:17]}  Rh8+ {[%clk 0:00:46]} 36. Kg1 {[%clk 0:00:18]}  Qh6 {[%clk 0:00:46]} 37. Qf6 {[%clk 0:00:15]}  Nh3+ {[%clk 0:00:30]} 38. Kh2 {[%clk 0:00:06]}  Qh5 {[%clk 0:00:26]} 39. Rh1 {[%clk 0:00:04]}  Nf2+ {[%clk 0:00:16]} 40. Kg1 {[%clk 0:00:04]}  Nxh1 {[%clk 0:00:17]} 41. Nf1 {[%clk 0:00:04]}  Ka7 {[%clk 0:00:13]} 42. Qd6 {[%clk 0:00:03]}  Bc8 {[%clk 0:00:07]} 43. Qxc5+ {[%clk 0:00:03]}  Ka8 {[%clk 0:00:08]} 44. Na4 {[%clk 0:00:03]}  Nxg3 {[%clk 0:00:06]} 45. Nxg3 {[%clk 0:00:03]}  Qg5 {[%clk 0:00:06]} 46. Nb6+ {[%clk 0:00:03]}  Kb8 {[%clk 0:00:07]} 47. Qd6+ {[%clk 0:00:03]}  Ka7 {[%clk 0:00:07]} 48. Nxc8+ {[%clk 0:00:03]}  Rxc8 {[%clk 0:00:06]} 49. c5 {[%clk 0:00:04]}  Qc1+ {[%clk 0:00:06]} 50. Nf1 {[%clk 0:00:04]}  Rxc5 {[%clk 0:00:07]} 51. Qxe5 {[%clk 0:00:02]}  Rc2 {[%clk 0:00:07]} 52. Qd4+ {[%clk 0:00:03]}  Kb8 {[%clk 0:00:06]} 53. d6 {[%clk 0:00:03]}  Rc8 {[%clk 0:00:05]} 54. d7 {[%clk 0:00:04]}  Rd8 {[%clk 0:00:05]} 55. Qd6+ {[%clk 0:00:04]}  Qc7 {[%clk 0:00:05]} 56. Qd5 {[%clk 0:00:04]}  Rxd7 {[%clk 0:00:05]} 57. Qf5 {[%clk 0:00:05]}  Qb6+ {[%clk 0:00:05]} 58. Kh2 {[%clk 0:00:04]}  Qe6 {[%clk 0:00:06]} 59. Qf4+ {[%clk 0:00:02]}  Qd6 {[%clk 0:00:06]} 60. Kg3 {[%clk 0:00:03]}  Qxf4+ {[%clk 0:00:06]} 61. Kxf4 {[%clk 0:00:04]}  Rd3 {[%clk 0:00:07]} 62. Kxg4 {[%clk 0:00:04]}  Rxa3 {[%clk 0:00:07]} 63. Nd2 {[%clk 0:00:03]}  Ra2 {[%clk 0:00:07]} 64. Nc4 {[%clk 0:00:03]}  Rxg2+ {[%clk 0:00:07]} 0-1


[Site "https://www.chess.com"]

[Event "Titled Tuesday Blitz May 4 2021"]
[White "Urazayev, Arystanbek"]
[Black "Karacsonyi, Gellert"]
[WhiteFideId "13709810"]
[BlackFideId "764620"]
[WhiteElo "2321"]
[BlackElo "2192"]
[Result "1-0"]
[Round "05"]
[TimeControl "180+1"]
[Date "2021.05.04"]
[WhiteClock "0:00:08"]
[BlackClock "0:00:07"]

1. e4 {[%clk 0:03:00]}  c5 {[%clk 0:02:59]} 2. Nf3 {[%clk 0:03:00]}  Nc6 {[%clk 0:03:00]} 3. Bb5 {[%clk 0:03:00]}  g6 {[%clk 0:03:00]} 4. O-O {[%clk 0:03:00]}  Bg7 {[%clk 0:03:01]} 5. c3 {[%clk 0:03:00]}  Nf6 {[%clk 0:03:01]} 6. e5 {[%clk 0:03:01]}  Nd5 {[%clk 0:03:01]} 7. d4 {[%clk 0:03:01]}  O-O {[%clk 0:03:01]} 8. dxc5 {[%clk 0:03:01]}  Nc7 {[%clk 0:03:01]} 9. Bxc6 {[%clk 0:03:01]}  dxc6 {[%clk 0:03:01]} 10. h3 {[%clk 0:03:02]}  a5 {[%clk 0:02:57]} 11. Nbd2 {[%clk 0:02:51]}  Bf5 {[%clk 0:02:55]} 12. Re1 {[%clk 0:02:44]}  Ne6 {[%clk 0:02:52]} 13. b4 {[%clk 0:02:30]}  axb4 {[%clk 0:02:43]} 14. cxb4 {[%clk 0:02:30]}  Qd5 {[%clk 0:02:43]} 15. Qb3 {[%clk 0:02:22]}  Qxb3 {[%clk 0:02:33]} 16. Nxb3 {[%clk 0:02:22]}  Rfd8 {[%clk 0:02:34]} 17. Bb2 {[%clk 0:02:15]}  Nc7 {[%clk 0:02:33]} 18. Na5 {[%clk 0:02:12]}  Rab8 {[%clk 0:02:27]} 19. Rad1 {[%clk 0:02:11]}  Nd5 {[%clk 0:02:26]} 20. a3 {[%clk 0:02:10]}  h5 {[%clk 0:02:26]} 21. Nd4 {[%clk 0:02:06]}  e6 {[%clk 0:02:23]} 22. Ndxc6 {[%clk 0:01:53]}  bxc6 {[%clk 0:02:22]} 23. Nxc6 {[%clk 0:01:54]}  Bc2 {[%clk 0:02:19]} 24. Rd2 {[%clk 0:01:49]}  Ba4 {[%clk 0:02:19]} 25. Nxd8 {[%clk 0:01:48]}  Rxd8 {[%clk 0:02:19]} 26. h4 {[%clk 0:01:39]}  Kf8 {[%clk 0:02:18]} 27. g3 {[%clk 0:01:38]}  Ke7 {[%clk 0:02:18]} 28. Rd3 {[%clk 0:01:23]}  Rd7 {[%clk 0:02:12]} 29. Bc1 {[%clk 0:01:18]}  Kd8 {[%clk 0:02:11]} 30. Bg5+ {[%clk 0:01:15]}  Kc7 {[%clk 0:02:11]} 31. Rd2 {[%clk 0:01:11]}  Kc6 {[%clk 0:02:10]} 32. Kh2 {[%clk 0:00:55]}  Ra7 {[%clk 0:02:10]} 33. Bd8 {[%clk 0:00:49]}  Bb5 {[%clk 0:02:09]} 34. Ba5 {[%clk 0:00:47]}  Bh6 {[%clk 0:02:05]} 35. Rd4 {[%clk 0:00:45]}  Bg7 {[%clk 0:02:03]} 36. f3 {[%clk 0:00:37]}  Ra8 {[%clk 0:01:59]} 37. g4 {[%clk 0:00:31]}  Rh8 {[%clk 0:01:57]} 38. Kg3 {[%clk 0:00:28]}  Bf8 {[%clk 0:01:53]} 39. Ra1 {[%clk 0:00:26]}  Ba4 {[%clk 0:01:51]} 40. Bd8 {[%clk 0:00:24]}  Bg7 {[%clk 0:01:46]} 41. Bf6 {[%clk 0:00:20]}  Nxf6 {[%clk 0:01:29]} 42. exf6 {[%clk 0:00:20]}  Bxf6 {[%clk 0:01:30]} 43. Rd6+ {[%clk 0:00:20]}  Kc7 {[%clk 0:01:30]} 44. Re1 {[%clk 0:00:21]}  hxg4 {[%clk 0:01:31]} 45. Kxg4 {[%clk 0:00:20]}  Rxh4+ {[%clk 0:01:29]} 46. Kg3 {[%clk 0:00:20]}  Rh5 {[%clk 0:01:26]} 47. Kg2 {[%clk 0:00:19]}  Be5 {[%clk 0:01:23]} 48. Ra6 {[%clk 0:00:20]}  Bc6 {[%clk 0:01:16]} 49. a4 {[%clk 0:00:16]}  Rh2+ {[%clk 0:01:15]} 50. Kg1 {[%clk 0:00:16]}  Rh5 {[%clk 0:01:11]} 51. Ra7+ {[%clk 0:00:13]}  Bb7 {[%clk 0:01:09]} 52. Rd1 {[%clk 0:00:12]}  Kb8 {[%clk 0:01:09]} 53. Rxb7+ {[%clk 0:00:11]}  Kxb7 {[%clk 0:01:10]} 54. Rd7+ {[%clk 0:00:11]}  Kc6 {[%clk 0:01:10]} 55. Rxf7 {[%clk 0:00:12]}  Rf5 {[%clk 0:01:08]} 56. Re7 {[%clk 0:00:12]}  Kd5 {[%clk 0:01:02]} 57. Kg2 {[%clk 0:00:13]}  Rg5+ {[%clk 0:01:01]} 58. Kf1 {[%clk 0:00:12]}  Rf5 {[%clk 0:00:59]} 59. Ke2 {[%clk 0:00:13]}  Rf4 {[%clk 0:00:59]} 60. Rb7 {[%clk 0:00:12]}  Bc3 {[%clk 0:00:52]} 61. b5 {[%clk 0:00:08]}  Rd4 {[%clk 0:00:52]} 62. c6 {[%clk 0:00:08]}  Rxa4 {[%clk 0:00:43]} 63. Rd7+ {[%clk 0:00:09]}  Ke5 {[%clk 0:00:22]} 64. c7 {[%clk 0:00:09]}  Rc4 {[%clk 0:00:18]} 65. b6 {[%clk 0:00:09]}  Ba5 {[%clk 0:00:18]} 66. b7 {[%clk 0:00:09]}  Bxc7 {[%clk 0:00:18]} 67. Rxc7 {[%clk 0:00:10]}  Rxc7 {[%clk 0:00:18]} 68. b8=Q {[%clk 0:00:10]}  Kd6 {[%clk 0:00:19]} 69. Ke3 {[%clk 0:00:10]}  Kd7 {[%clk 0:00:19]} 70. Qh8 {[%clk 0:00:09]}  Rc5 {[%clk 0:00:18]} 71. Qg7+ {[%clk 0:00:09]}  Kd6 {[%clk 0:00:18]} 72. Qxg6 {[%clk 0:00:09]}  Rf5 {[%clk 0:00:18]} 73. Qg8 {[%clk 0:00:10]}  Ke7 {[%clk 0:00:19]} 74. Qb8 {[%clk 0:00:09]}  Rd5 {[%clk 0:00:19]} 75. Ke4 {[%clk 0:00:09]}  Rf5 {[%clk 0:00:19]} 76. Qc7+ {[%clk 0:00:08]}  Ke8 {[%clk 0:00:17]} 77. f4 {[%clk 0:00:07]}  Rd5 {[%clk 0:00:17]} 78. Qh7 {[%clk 0:00:08]}  Rf5 {[%clk 0:00:16]} 79. Qg7 {[%clk 0:00:07]}  Rd5 {[%clk 0:00:15]} 80. Qf6 {[%clk 0:00:07]}  Kd7 {[%clk 0:00:14]} 81. Qf7+ {[%clk 0:00:07]}  Kd6 {[%clk 0:00:14]} 82. Qf6 {[%clk 0:00:07]}  Kd7 {[%clk 0:00:13]} 83. Qf8 {[%clk 0:00:07]}  Rb5 {[%clk 0:00:11]} 84. Qf7+ {[%clk 0:00:07]}  Kd6 {[%clk 0:00:11]} 85. Qg8 {[%clk 0:00:07]}  Rf5 {[%clk 0:00:11]} 86. Qd8+ {[%clk 0:00:06]}  Kc6 {[%clk 0:00:10]} 87. Qe7 {[%clk 0:00:07]}  Rd5 {[%clk 0:00:06]} 88. Qxe6+ {[%clk 0:00:07]}  Rd6 {[%clk 0:00:07]} 89. Ke5 {[%clk 0:00:08]} 1-0


[Site "https://www.chess.com"]

[Event "Titled Tuesday Blitz May 4 2021"]
[White "ValeriyGrinev"]
[Black "Davtyan, David Arm."]
[BlackFideId "13310046"]
[WhiteElo "2624"]
[BlackElo "2028"]
[Result "1-0"]
[Round "05"]
[TimeControl "180+1"]
[Date "2021.05.04"]
[WhiteClock "0:02:00"]
[BlackClock "0:00:02"]

1. c4 {[%clk 0:03:00]}  Nf6 {[%clk 0:02:59]} 2. Nc3 {[%clk 0:03:00]}  g6 {[%clk 0:02:59]} 3. e4 {[%clk 0:02:59]}  e5 {[%clk 0:02:58]} 4. Nf3 {[%clk 0:02:57]}  Bg7 {[%clk 0:02:58]} 5. Nxe5 {[%clk 0:02:57]}  O-O {[%clk 0:02:58]} 6. Nf3 {[%clk 0:02:57]}  Re8 {[%clk 0:02:58]} 7. d3 {[%clk 0:02:57]}  d5 {[%clk 0:02:58]} 8. cxd5 {[%clk 0:02:56]}  Nxd5 {[%clk 0:02:59]} 9. Bd2 {[%clk 0:02:54]}  Nc6 {[%clk 0:02:54]} 10. Be2 {[%clk 0:02:54]}  Nb6 {[%clk 0:02:31]} 11. O-O {[%clk 0:02:50]}  Bg4 {[%clk 0:02:29]} 12. Be3 {[%clk 0:02:49]}  Qd7 {[%clk 0:02:19]} 13. Qd2 {[%clk 0:02:41]}  Rad8 {[%clk 0:02:15]} 14. Rad1 {[%clk 0:02:41]}  Qe7 {[%clk 0:02:10]} 15. Bg5 {[%clk 0:02:25]}  Bf6 {[%clk 0:02:03]} 16. Bxf6 {[%clk 0:02:25]}  Qxf6 {[%clk 0:02:04]} 17. Qe3 {[%clk 0:02:19]}  Bxf3 {[%clk 0:01:55]} 18. Bxf3 {[%clk 0:02:20]}  Nd4 {[%clk 0:01:56]} 19. Rd2 {[%clk 0:02:14]}  Nxf3+ {[%clk 0:01:51]} 20. Qxf3 {[%clk 0:02:13]}  Qxf3 {[%clk 0:01:50]} 21. gxf3 {[%clk 0:02:13]}  Nc4 {[%clk 0:01:50]} 22. Rc2 {[%clk 0:02:10]}  Ne5 {[%clk 0:01:41]} 23. Nd5 {[%clk 0:02:05]}  Nxf3+ {[%clk 0:00:18]} 24. Kg2 {[%clk 0:02:04]}  Rxd5 {[%clk 0:00:18]} 25. exd5 {[%clk 0:02:02]}  Ne1+ {[%clk 0:00:18]} 26. Rxe1 {[%clk 0:02:01]}  Rxe1 {[%clk 0:00:19]} 27. Rxc7 {[%clk 0:02:02]}  Rd1 {[%clk 0:00:16]} 28. Rxb7 {[%clk 0:02:01]}  Rxd3 {[%clk 0:00:16]} 29. Rxa7 {[%clk 0:02:01]}  Rxd5 {[%clk 0:00:13]} 30. b4 {[%clk 0:02:02]}  Rg5+ {[%clk 0:00:10]} 31. Kf1 {[%clk 0:02:01]}  Rh5 {[%clk 0:00:07]} 32. a4 {[%clk 0:02:01]}  Rh4 {[%clk 0:00:02]} 33. b5 {[%clk 0:02:00]}  Rb4 {[%clk 0:00:01]} 34. Ra6 {[%clk 0:02:00]}  Kg7 {[%clk 0:00:02]} 35. b6 {[%clk 0:02:01]}  Rxa4 {[%clk 0:00:02]} 36. Rxa4 {[%clk 0:02:00]} 1-0


[Site "https://www.chess.com"]

[Event "Titled Tuesday Blitz May 4 2021"]
[White "Vasquez Schroeder, Rodrigo"]
[Black "Yilmaz, Mustafa"]
[WhiteFideId "3400042"]
[BlackFideId "6302718"]
[WhiteElo "2572"]
[BlackElo "2518"]
[Result "0-1"]
[Round "05"]
[TimeControl "180+1"]
[Date "2021.05.04"]
[WhiteClock "0:01:13"]
[BlackClock "0:00:23"]

1. e4 {[%clk 0:03:00]}  c5 {[%clk 0:02:16]} 2. Nf3 {[%clk 0:02:59]}  Nc6 {[%clk 0:02:15]} 3. Bb5 {[%clk 0:02:59]}  e6 {[%clk 0:02:15]} 4. c3 {[%clk 0:02:58]}  Nge7 {[%clk 0:02:14]} 5. d4 {[%clk 0:02:57]}  cxd4 {[%clk 0:02:11]} 6. cxd4 {[%clk 0:02:57]}  a6 {[%clk 0:02:11]} 7. Bd3 {[%clk 0:02:56]}  Ng6 {[%clk 0:02:09]} 8. h4 {[%clk 0:02:54]}  Bb4+ {[%clk 0:01:54]} 9. Kf1 {[%clk 0:02:45]}  h6 {[%clk 0:01:45]} 10. h5 {[%clk 0:02:44]}  Nge7 {[%clk 0:01:45]} 11. a3 {[%clk 0:02:43]}  Ba5 {[%clk 0:01:45]} 12. Nc3 {[%clk 0:02:40]}  d6 {[%clk 0:01:28]} 13. Ne2 {[%clk 0:02:37]}  O-O {[%clk 0:01:26]} 14. b4 {[%clk 0:02:31]}  Bc7 {[%clk 0:01:27]} 15. Bb2 {[%clk 0:02:27]}  e5 {[%clk 0:01:25]} 16. d5 {[%clk 0:02:22]}  Nb8 {[%clk 0:01:25]} 17. Ng3 {[%clk 0:02:18]}  Bb6 {[%clk 0:01:22]} 18. Nh4 {[%clk 0:02:17]}  Nd7 {[%clk 0:01:22]} 19. Nhf5 {[%clk 0:01:57]}  Nf6 {[%clk 0:01:17]} 20. Qf3 {[%clk 0:01:55]}  Nxf5 {[%clk 0:01:10]} 21. Nxf5 {[%clk 0:01:56]}  Bxf5 {[%clk 0:00:55]} 22. Qxf5 {[%clk 0:01:57]}  Qc8 {[%clk 0:00:56]} 23. Qf3 {[%clk 0:01:51]}  Ng4 {[%clk 0:00:53]} 24. Rc1 {[%clk 0:01:34]}  Qd7 {[%clk 0:00:53]} 25. Qh3 {[%clk 0:01:33]}  f5 {[%clk 0:00:37]} 26. Rc2 {[%clk 0:01:21]}  fxe4 {[%clk 0:00:35]} 27. Bxe4 {[%clk 0:01:20]}  Ne3+ {[%clk 0:00:35]} 28. Ke1 {[%clk 0:01:16]}  Nxc2+ {[%clk 0:00:33]} 29. Bxc2 {[%clk 0:01:14]}  Qxh3 {[%clk 0:00:32]} 30. Rxh3 {[%clk 0:01:13]}  Rac8 {[%clk 0:00:23]} 0-1


[Site "https://www.chess.com"]

[Event "Titled Tuesday Blitz May 4 2021"]
[White "Velickovic, Zoran"]
[Black "Remolar Gallen, Jose"]
[WhiteFideId "14601184"]
[BlackFideId "2215187"]
[WhiteElo "2345"]
[BlackElo "2203"]
[Result "1-0"]
[Round "05"]
[TimeControl "180+1"]
[Date "2021.05.04"]
[WhiteClock "0:00:44"]
[BlackClock "0:00:29"]

1. Nf3 {[%clk 0:03:00]}  Nf6 {[%clk 0:02:59]} 2. g3 {[%clk 0:03:00]}  g6 {[%clk 0:03:00]} 3. c4 {[%clk 0:03:00]}  Bg7 {[%clk 0:03:00]} 4. Bg2 {[%clk 0:03:01]}  O-O {[%clk 0:03:01]} 5. O-O {[%clk 0:03:02]}  d6 {[%clk 0:03:01]} 6. d4 {[%clk 0:03:02]}  Nc6 {[%clk 0:03:02]} 7. Nc3 {[%clk 0:03:02]}  a6 {[%clk 0:03:02]} 8. h3 {[%clk 0:03:02]}  Rb8 {[%clk 0:03:00]} 9. e4 {[%clk 0:03:02]}  Bd7 {[%clk 0:02:49]} 10. Qe2 {[%clk 0:02:56]}  e5 {[%clk 0:02:49]} 11. Be3 {[%clk 0:02:44]}  Re8 {[%clk 0:02:45]} 12. d5 {[%clk 0:02:36]}  Nd4 {[%clk 0:02:38]} 13. Nxd4 {[%clk 0:02:13]}  exd4 {[%clk 0:02:39]} 14. Bxd4 {[%clk 0:02:13]}  Nxe4 {[%clk 0:02:29]} 15. Bxg7 {[%clk 0:02:13]}  Nxc3 {[%clk 0:02:28]} 16. Qxe8+ {[%clk 0:01:46]}  Bxe8 {[%clk 0:02:27]} 17. Bxc3 {[%clk 0:01:47]}  b5 {[%clk 0:02:28]} 18. cxb5 {[%clk 0:01:43]}  Bxb5 {[%clk 0:02:22]} 19. Rfe1 {[%clk 0:01:43]}  Bc4 {[%clk 0:02:12]} 20. Re3 {[%clk 0:01:39]}  Qd7 {[%clk 0:01:56]} 21. b3 {[%clk 0:01:22]}  Bxd5 {[%clk 0:01:07]} 22. Bxd5 {[%clk 0:01:20]}  c6 {[%clk 0:01:07]} 23. Bg2 {[%clk 0:01:12]}  d5 {[%clk 0:01:07]} 24. Bd4 {[%clk 0:01:08]}  Rc8 {[%clk 0:00:55]} 25. Rae1 {[%clk 0:00:59]}  c5 {[%clk 0:00:51]} 26. Re7 {[%clk 0:00:57]}  Qc6 {[%clk 0:00:39]} 27. Bxd5 {[%clk 0:00:47]}  Qd6 {[%clk 0:00:29]} 28. Re8+ {[%clk 0:00:44]} 1-0


[Site "https://www.chess.com"]

[Event "Titled Tuesday Blitz May 4 2021"]
[White "Vignesh, N R"]
[Black "Yurtseven, Melih"]
[WhiteFideId "25012215"]
[BlackFideId "6312160"]
[WhiteElo "2401"]
[BlackElo "2160"]
[Result "1-0"]
[Round "05"]
[TimeControl "180+1"]
[Date "2021.05.04"]
[WhiteClock "0:00:26"]
[BlackClock "0:00:02"]

1. c4 {[%clk 0:03:00]}  e6 {[%clk 0:03:00]} 2. g3 {[%clk 0:02:59]}  d5 {[%clk 0:03:00]} 3. Bg2 {[%clk 0:02:59]}  Nf6 {[%clk 0:02:51]} 4. Nf3 {[%clk 0:02:58]}  a6 {[%clk 0:02:50]} 5. b3 {[%clk 0:02:49]}  b5 {[%clk 0:02:48]} 6. O-O {[%clk 0:02:46]}  Bb7 {[%clk 0:02:42]} 7. Bb2 {[%clk 0:02:43]}  dxc4 {[%clk 0:02:30]} 8. bxc4 {[%clk 0:02:42]}  Be7 {[%clk 0:02:30]} 9. Qc2 {[%clk 0:02:34]}  O-O {[%clk 0:02:27]} 10. d3 {[%clk 0:02:31]}  c5 {[%clk 0:02:26]} 11. Nbd2 {[%clk 0:02:28]}  b4 {[%clk 0:02:21]} 12. Nb3 {[%clk 0:02:03]}  a5 {[%clk 0:02:10]} 13. d4 {[%clk 0:02:04]}  Be4 {[%clk 0:01:57]} 14. Qc1 {[%clk 0:02:01]}  Nbd7 {[%clk 0:01:55]} 15. Rd1 {[%clk 0:01:55]}  a4 {[%clk 0:01:44]} 16. Nxc5 {[%clk 0:01:43]}  a3 {[%clk 0:01:44]} 17. Nxe4 {[%clk 0:01:43]}  axb2 {[%clk 0:01:42]} 18. Nxf6+ {[%clk 0:01:42]}  Bxf6 {[%clk 0:01:42]} 19. Qxb2 {[%clk 0:01:41]}  Qa5 {[%clk 0:01:42]} 20. e3 {[%clk 0:01:38]}  Rfc8 {[%clk 0:01:36]} 21. Nd2 {[%clk 0:01:37]}  Rab8 {[%clk 0:01:34]} 22. Ne4 {[%clk 0:01:36]}  Be7 {[%clk 0:01:32]} 23. c5 {[%clk 0:01:33]}  Nf6 {[%clk 0:01:21]} 24. Nd2 {[%clk 0:01:18]}  Qb5 {[%clk 0:01:17]} 25. Rab1 {[%clk 0:01:16]}  Nd5 {[%clk 0:01:16]} 26. Bxd5 {[%clk 0:01:09]}  exd5 {[%clk 0:01:17]} 27. a3 {[%clk 0:01:08]}  b3 {[%clk 0:00:56]} 28. Qxb3 {[%clk 0:01:06]}  Qe2 {[%clk 0:00:45]} 29. Qxd5 {[%clk 0:01:05]}  Rxb1 {[%clk 0:00:41]} 30. Rxb1 {[%clk 0:01:06]}  Qxd2 {[%clk 0:00:34]} 31. Qd7 {[%clk 0:01:05]}  Rf8 {[%clk 0:00:29]} 32. Qxe7 {[%clk 0:01:05]}  Qd3 {[%clk 0:00:30]} 33. Rb7 {[%clk 0:01:02]}  Qxa3 {[%clk 0:00:28]} 34. Kg2 {[%clk 0:00:59]}  Qc1 {[%clk 0:00:28]} 35. Qe4 {[%clk 0:00:58]}  Qc4 {[%clk 0:00:26]} 36. Re7 {[%clk 0:00:57]}  h5 {[%clk 0:00:25]} 37. Re8 {[%clk 0:00:56]}  Rxe8 {[%clk 0:00:24]} 38. Qxe8+ {[%clk 0:00:56]}  Kh7 {[%clk 0:00:25]} 39. Qe4+ {[%clk 0:00:56]}  g6 {[%clk 0:00:25]} 40. c6 {[%clk 0:00:55]}  Kg8 {[%clk 0:00:18]} 41. h4 {[%clk 0:00:53]}  Kh7 {[%clk 0:00:17]} 42. Qf3 {[%clk 0:00:51]}  Kg7 {[%clk 0:00:16]} 43. d5 {[%clk 0:00:50]}  Qc5 {[%clk 0:00:16]} 44. e4 {[%clk 0:00:49]}  f6 {[%clk 0:00:14]} 45. Qf4 {[%clk 0:00:47]}  Qc4 {[%clk 0:00:13]} 46. c7 {[%clk 0:00:44]}  Qc5 {[%clk 0:00:10]} 47. d6 {[%clk 0:00:42]}  Qc6 {[%clk 0:00:10]} 48. Kh2 {[%clk 0:00:41]}  Kf7 {[%clk 0:00:08]} 49. e5 {[%clk 0:00:38]}  f5 {[%clk 0:00:05]} 50. Qg5 {[%clk 0:00:37]}  Ke6 {[%clk 0:00:02]} 51. Qe7+ {[%clk 0:00:32]}  Kd5 {[%clk 0:00:02]} 52. d7 {[%clk 0:00:31]}  Qc2 {[%clk 0:00:02]} 53. d8=Q+ {[%clk 0:00:31]}  Ke4 {[%clk 0:00:02]} 54. Qb4+ {[%clk 0:00:27]}  Kf3 {[%clk 0:00:02]} 55. Qd5+ {[%clk 0:00:26]} 1-0


[Site "https://www.chess.com"]